[Event "Nakhchivan Premium 2021"]
[Site "Nakhchivan"]
[Date "2021.03.22"]
[Round "1.4"]
[White "Ahmadova, Yegana"]
[Black "Seyid, Huseyn"]
[Result "0-1"]
[ECO "B14"]
[WhiteElo "1421"]
[BlackElo "1660"]
[Annotator "NA RC"]
[PlyCount "60"]
[EventDate "2021.03.14"]
[EventType "tourn"]
[EventCountry "AZE"]
[SourceTitle "playchess.com"]
[Source "ChessBase"]
[SourceQuality "1"]
[TimeControl "5400+30"]

1. e4 {[%emt 0:00:00]} c6 {[%emt 0:00:00]} 2. d4 {[%emt 0:00:00]} d5 {[%emt 0:00:00]} 3. exd5 {[%emt 0:00:00]} cxd5 {[%emt 0:00:00]} 4. c4 {[%emt 0:00:00]} Nf6 {[%emt 0:00:00]} 5. Nc3 {[%emt 0:00:01]} e6 {[%emt 0:00:15]} 6. Nf3 {[%emt 0:00:14]} Nc6 {[%emt 0:00:14]} 7. cxd5 {[%emt 0:02:59]} exd5 {[%emt 0:00:22]} 8. Bd3 {[%emt 0:01:19]} Be7 {[%emt 0:01:11]} 9. O-O {[%emt 0:00:09]} Bg4 {[%emt 0:00:49]} 10. Be3 {[%emt 0:05:27]} O-O {[%emt 0:00:32]} 11. h3 {[%emt 0:02:17]} Bh5 {[%emt 0:00:14]} 12. Be2 {[%emt 0:03:47]} Ne4 {[%emt 0:14:07]} 13. Ne5 {[%emt 0:06:03]} Bxe2 {[%emt 0:02:22]} 14. Nxe2 {[%emt 0:12:01]} Rc8 {[%emt 0:08:38]} 15. Rc1 {[%emt 0:05:49]} Bd6 {[%emt 0:10:48]} 16. Nxc6 {[%emt 0:04:52]} bxc6 {[%emt 0:01:06]} 17. Bf4 {[%emt 0:08:28]} Bxf4 {[%emt 0:01:44]} 18. Nxf4 {[%emt 0:00:18]} Qf6 {[%emt 0:01:38]} 19. Ne2 {[%emt 0:03:42]} Rfe8 {[%emt 0:03:54]} 20. f3 {[%emt 0:10:46]} Nd6 {[%emt 0:00:25]} 21. b3 {[%emt 0:03:41]} Nf5 {[%emt 0:01:32]} 22. Rf2 {[%emt 0:09:29]} Re7 {[%emt 0:10:56]} 23. Qd2 {[%emt 0:06:21]} Rce8 {[%emt 0:01:44]} 24. Qb4 {[%emt 0:12:16]} h6 {[%emt 0:01:55]} 25. Rc2 {[%emt 0:01:20]} Qg6 {[%emt 0:05:14]} 26. Qc5 {[%emt 0:00:59]} Ne3 {[%emt 0:04:30]} 27. Rc1 {[%emt 0:00:06]} Nf5 {[%emt 0:03:56]} 28. Rc2 {[%emt 0:00:14]} Ng3 {[%emt 0:02:52]} 29. Nxg3 {[%emt 0:01:01]} Qxg3 {[%emt 0:00:06]} 30. Rf1 {[%emt 0:00:08]} Re2 {[%emt 0:00:25]} 0-1

[Event "Nakhchivan Premium 2021"]
[Site "Nakhchivan"]
[Date "2021.03.22"]
[Round "1.6"]
[White "Baghirov, Orkhan"]
[Black "Ismayilov, Arturan"]
[Result "1/2-1/2"]
[ECO "D94"]
[WhiteElo "1473"]
[BlackElo "1663"]
[Annotator "NA RC"]
[PlyCount "164"]
[EventDate "2021.03.14"]
[EventType "tourn"]
[EventCountry "AZE"]
[SourceTitle "playchess.com"]
[Source "ChessBase"]
[SourceQuality "1"]
[TimeControl "5400+30"]

1. d4 {[%emt 0:00:00]} Nf6 {[%emt 0:00:00]} 2. c4 {[%emt 0:01:42]} g6 {[%emt 0:00:05]} 3. Nc3 {[%emt 0:00:08]} d5 {[%emt 0:00:28]} 4. Nf3 {[%emt 0:01:02]} Bg7 {[%emt 0:00:15]} 5. e3 {[%emt 0:00:08]} O-O {[%emt 0:01:28]} 6. Bd3 {[%emt 0:01:10]} dxc4 {[%emt 0:01:54]} 7. Bxc4 {[%emt 0:01:03]} c5 {[%emt 0:01:14]} 8. O-O {[%emt 0:06:34]} Nc6 {[%emt 0:02:42]} 9. d5 {[%emt 0:11:55]} Na5 {[%emt 0:04:47]} 10. Be2 {[%emt 0:01:38]} Bf5 {[%emt 0:06:15]} 11. Nh4 {[%emt 0:04:41]} Be4 {[%emt 0:16:54]} 12. Bf3 {[%emt 0:13:15]} Bxf3 {[%emt 0:00:20]} 13. Nxf3 {[%emt 0:00:27]} Re8 {[%emt 0:06:32]} 14. e4 {[%emt 0:09:25]} Ng4 {[%emt 0:01:53]} 15. Qe2 {[%emt 0:09:53]} Ne5 {[%emt 0:03:27]} 16. Nxe5 {[%emt 0:01:33]} Bxe5 {[%emt 0:00:04]} 17. f4 {[%emt 0:00:52]} Bd4+ {[%emt 0:00:14]} 18. Be3 {[%emt 0:00:22]} e6 {[%emt 0:01:34]} 19. Rad1 {[%emt 0:03:34]} exd5 {[%emt 0:03:17]} 20. Bxd4 {[%emt 0:03:17]} cxd4 {[%emt 0:00:07]} 21. Rxd4 {[%emt 0:01:04]} Qb6 {[%emt 0:00:52]} 22. Qf2 {[%emt 0:00:53]} dxe4 {[%emt 0:01:32]} 23. Rxe4 {[%emt 0:02:29]} Qxf2+ {[%emt 0:02:41]} 24. Kxf2 {[%emt 0:01:30]} Rxe4 {[%emt 0:00:17]} 25. Nxe4 {[%emt 0:00:06]} Rc8 {[%emt 0:00:01]} 26. Re1 {[%emt 0:01:46]} Kg7 {[%emt 0:01:48]} 27. b3 {[%emt 0:01:45]} Rc6 {[%emt 0:00:58]} 28. Re2 {[%emt 0:00:43]} b5 {[%emt 0:01:18]} 29. Ke3 {[%emt 0:03:42]} Re6 {[%emt 0:03:33]} 30. Kf3 {[%emt 0:01:20]} Ra6 {[%emt 0:04:18]} 31. Nc5 {[%emt 0:01:52]} Rc6 {[%emt 0:00:15]} 32. Ne4 {[%emt 0:00:59]} Rc1 {[%emt 0:01:27]} 33. Nd6 {[%emt 0:03:12]} Nc6 {[%emt 0:00:00]} 34. Kf2 {[%emt 0:02:38]} b4 {[%emt 0:00:50]} 35. Re1 {[%emt 0:00:57]} Rc5 {[%emt 0:01:01]} 36. Ne4 {[%emt 0:02:11]} Ra5 {[%emt 0:02:02]} 37. Re2 {[%emt 0:00:13]} h6 {[%emt 0:02:39]} 38. Rd2 {[%emt 0:00:51]} g5 {[%emt 0:00:48]} 39. g3 {[%emt 0:00:16]} f6 {[%emt 0:06:35]} 40. Nd6 {[%emt 0:00:00]} Rc5 {[%emt 0:00:00]} 41. Nc4 {[%emt 0:00:00]} a5 {[%emt 0:00:00]} 42. Rd7+ {[%emt 0:00:00]} Kg6 {[%emt 0:00:00]} 43. Rc7 {[%emt 0:00:00]} gxf4 {[%emt 0:00:00]} 44. gxf4 {[%emt 0:00:00]} Kf5 {[%emt 0:00:00]} 45. Ke3 {[%emt 0:00:00]} Kg4 {[%emt 0:00:00]} 46. Rf7 {[%emt 0:00:00]} f5 {[%emt 0:00:00]} 47. Rf6 {[%emt 0:00:00]} Kh5 {[%emt 0:04:20]} 48. Rd6 {[%emt 0:00:00]} a4 {[%emt 0:01:11]} 49. Rd7 {[%emt 0:00:00]} axb3 {[%emt 0:03:13]} 50. axb3 {[%emt 0:00:00]} Na5 {[%emt 0:02:52]} 51. Nxa5 {[%emt 0:00:00]} Rxa5 {[%emt 0:00:01]} 52. Rb7 {[%emt 0:00:00]} Ra2 {[%emt 0:00:01]} 53. Rxb4 {[%emt 0:00:00]} Rxh2 {[%emt 0:00:01]} 54. Kf3 {[%emt 0:00:00]} Rh3+ {[%emt 0:00:52]} 55. Kg2 {[%emt 0:00:00]} Kg4 {[%emt 0:00:05]} 56. Rb6 {[%emt 0:00:00]} Rg3+ {[%emt 0:02:27]} 57. Kf2 {[%emt 0:00:00]} Rf3+ {[%emt 0:00:13]} 58. Kg2 {[%emt 0:00:00]} h5 {[%emt 0:00:49]} 59. Rg6+ {[%emt 0:00:05]} Kxf4 {[%emt 0:00:05]} 60. Rh6 {[%emt 0:00:13]} Rxb3 {[%emt 0:01:14]} 61. Rxh5 {[%emt 0:00:03]} Kg4 {[%emt 0:01:27]} 62. Rh8 {[%emt 0:00:26]} Rb2+ {[%emt 0:00:02]} 63. Kf1 {[%emt 0:00:24]} Kg3 {[%emt 0:00:15]} 64. Rc8 {[%emt 0:02:44]} f4 {[%emt 0:00:44]} 65. Rf8 {[%emt 0:04:58]} Kf3 {[%emt 0:01:37]} 66. Kg1 {[%emt 0:03:24]} Rb1+ {[%emt 0:02:14]} 67. Kh2 {[%emt 0:00:02]} Re1 {[%emt 0:00:09]} 68. Rf7 {[%emt 0:02:31]} Rf1 {[%emt 0:00:24]} 69. Rb7 {[%emt 0:03:18]} Re1 {[%emt 0:00:50]} 70. Rf7 {[%emt 0:00:10]} Re4 {[%emt 0:00:27]} 71. Kg1 {[%emt 0:00:34]} Ra4 {[%emt 0:00:38]} 72. Rb7 {[%emt 0:00:40]} Ra1+ {[%emt 0:00:33]} 73. Kh2 {[%emt 0:00:02]} Kf2 {[%emt 0:00:31]} 74. Rb2+ {[%emt 0:00:22]} Kf1 {[%emt 0:00:04]} 75. Rb3 {[%emt 0:01:31]} Ra2+ {[%emt 0:00:06]} 76. Kh3 {[%emt 0:00:42]} Rf2 {[%emt 0:04:38]} 77. Kg4 {[%emt 0:00:22]} Kg2 {[%emt 0:00:25]} 78. Rc3 {[%emt 0:01:27]} Rf1 {[%emt 0:01:32]} 79. Rc2+ {[%emt 0:00:22]} Kg1 {[%emt 0:00:09]} 80. Rc3 {[%emt 0:00:16]} f3 {[%emt 0:02:31]} 81. Rxf3 {[%emt 0:00:10]} Rf2 {[%emt 0:00:02]} 82. Rxf2 {[%emt 0:00:03]} Kxf2 1/2-1/2

[Event "Nakhchivan Premium 2021"]
[Site "Nakhchivan"]
[Date "2021.03.23"]
[Round "2.2"]
[White "Sevdimaliyev, Urfan"]
[Black "Aliyev, Aykhan"]
[Result "1-0"]
[ECO "B21"]
[WhiteElo "2369"]
[BlackElo "1683"]
[Annotator "ChessBase"]
[PlyCount "69"]
[EventDate "2021.03.14"]
[EventType "tourn"]
[EventCountry "AZE"]
[SourceTitle "playchess.com"]
[Source "ChessBase"]
[SourceQuality "1"]
[TimeControl "5400+30"]

1. e4 {[%emt 0:00:00]} c5 {[%emt 0:00:00]} 2. f4 {[%emt 0:00:00]} Nc6 {[%emt 0:00:00]} 3. Nf3 {[%emt 0:00:00]} g6 {[%emt 0:00:41]} 4. Nc3 {[%emt 0:00:35]} Bg7 {[%emt 0:00:17]} 5. Bb5 {[%emt 0:00:04]} e6 {[%emt 0:02:04]} 6. Bxc6 {[%emt 0:07:07]} bxc6 {[%emt 0:05:33]} 7. e5 {[%emt 0:02:59]} d5 {[%emt 0:00:54]} 8. O-O {[%emt 0:03:41]} Ne7 {[%emt 0:04:21]} 9. d3 {[%emt 0:00:59]} h5 {[%emt 0:14:38]} 10. b3 {[%emt 0:05:13]} Nf5 {[%emt 0:02:57]} 11. Qe1 {[%emt 0:10:58]} Bf8 {[%emt 0:06:32]} 12. Ba3 {[%emt 0:03:48]} Rb8 {[%emt 0:03:13]} 13. Na4 {[%emt 0:06:48]} Rb5 {[%emt 0:04:58]} 14. c4 {[%emt 0:03:39]} dxc4 {[%emt 0:04:16]} 15. dxc4 {[%emt 0:00:24]} Rb4 {[%emt 0:00:27]} 16. Rd1 {[%emt 0:02:02]} Qc7 {[%emt 0:02:49]} 17. Bxb4 {[%emt 0:05:39]} cxb4 {[%emt 0:00:17]} 18. Ng5 {[%emt 0:03:21]} Be7 {[%emt 0:02:41]} 19. Ne4 {[%emt 0:00:39]} O-O {[%emt 0:01:11]} 20. Qf2 {[%emt 0:01:54]} Rd8 {[%emt 0:04:29]} 21. Rxd8+ {[%emt 0:03:49]} Qxd8 {[%emt 0:00:47]} 22. Qd2 {[%emt 0:00:38]} Qxd2 {[%emt 0:01:14]} 23. Nxd2 {[%emt 0:00:06]} c5 {[%emt 0:02:35]} 24. Ne4 {[%emt 0:01:08]} Bb7 {[%emt 0:00:52]} 25. Nexc5 {[%emt 0:02:21]} Bc6 {[%emt 0:00:10]} 26. Kf2 {[%emt 0:02:34]} g5 {[%emt 0:00:32]} 27. g3 {[%emt 0:03:28]} h4 {[%emt 0:01:24]} 28. Nd3 {[%emt 0:06:59]} gxf4 {[%emt 0:00:29]} 29. gxf4 {[%emt 0:04:05]} h3 {[%emt 0:00:12]} 30. Ke2 {[%emt 0:02:03]} Bh4 {[%emt 0:01:17]} 31. Nxb4 {[%emt 0:04:26]} Bg2 {[%emt 0:02:42]} 32. Rd1 {[%emt 0:00:58]} a5 {[%emt 0:08:20]} 33. Nc2 {[%emt 0:01:41]} Ng3+ {[%emt 0:00:08]} 34. hxg3 {[%emt 0:01:41]} Bxg3 {[%emt 0:00:10]} 35. Ne3 {[%emt 0:00:36]} 1-0

[Event "Nakhchivan Premium 2021"]
[Site "Nakhchivan"]
[Date "2021.03.23"]
[Round "2.3"]
[White "Seyid, Huseyn"]
[Black "Baghirov, Orkhan"]
[Result "1-0"]
[ECO "C05"]
[WhiteElo "1660"]
[BlackElo "1473"]
[Annotator "NA"]
[PlyCount "73"]
[EventDate "2021.03.14"]
[EventType "tourn"]
[EventCountry "AZE"]
[SourceTitle "playchess.com"]
[Source "ChessBase"]
[SourceQuality "1"]
[TimeControl "5400+30"]

1. e4 {[%emt 0:00:00]} e6 {[%emt 0:00:23]} 2. d4 {[%emt 0:00:00]} d5 {[%emt 0:01:41]} 3. Nd2 {[%emt 0:00:01]} Nf6 {[%emt 0:00:55]} 4. e5 {[%emt 0:00:08]} Nfd7 {[%emt 0:00:05]} 5. Bd3 {[%emt 0:00:10]} c5 {[%emt 0:00:05]} 6. c3 {[%emt 0:00:03]} Nc6 {[%emt 0:00:48]} 7. Ne2 {[%emt 0:00:03]} Qb6 {[%emt 0:00:06]} 8. Nf3 {[%emt 0:00:48]} cxd4 {[%emt 0:01:40]} 9. cxd4 {[%emt 0:00:02]} f6 {[%emt 0:00:06]} 10. exf6 {[%emt 0:01:23]} Nxf6 {[%emt 0:00:02]} 11. O-O {[%emt 0:00:38]} Bd6 {[%emt 0:04:54]} 12. Re1 {[%emt 0:01:07]} O-O {[%emt 0:03:57]} 13. Bf4 {[%emt 0:07:59]} Qc7 {[%emt 0:02:44]} 14. g3 {[%emt 0:00:55]} Nh5 {[%emt 0:05:17]} 15. Bxd6 {[%emt 0:01:30]} Qxd6 {[%emt 0:02:02]} 16. Nc3 {[%emt 0:01:10]} g6 {[%emt 0:09:29]} 17. Ne5 {[%emt 0:26:48]} Nxe5 {[%emt 0:05:39]} 18. Rxe5 {[%emt 0:00:13]} Nf6 {[%emt 0:03:48]} 19. Bf1 {[%emt 0:13:46]} a6 {[%emt 0:07:30]} 20. Bh3 {[%emt 0:00:41]} Bd7 {[%emt 0:02:46]} 21. Qe2 {[%emt 0:01:14]} Rae8 {[%emt 0:04:00]} 22. Re1 {[%emt 0:00:22]} Qb4 {[%emt 0:01:57]} 23. Qd2 {[%emt 0:02:55]} Qd6 {[%emt 0:03:10]} 24. Qe3 {[%emt 0:01:51]} Qb4 {[%emt 0:03:16]} 25. Re2 {[%emt 0:02:01]} Kg7 {[%emt 0:01:27]} 26. a3 {[%emt 0:03:21]} Qc4 {[%emt 0:08:47]} 27. Qd2 {[%emt 0:09:30]} Qc6 {[%emt 0:04:35]} 28. f3 {[%emt 0:03:10]} Rf7 {[%emt 0:05:33]} 29. f4 {[%emt 0:02:15]} Rfe7 {[%emt 0:04:02]} 30. f5 {[%emt 0:03:04]} Qd6 {[%emt 0:02:41]} 31. Qe3 {[%emt 0:02:38]} Kf7 {[%emt 0:01:46]} 32. fxg6+ {[%emt 0:01:15]} hxg6 {[%emt 0:00:02]} 33. Qh6 {[%emt 0:00:54]} Rg8 {[%emt 0:05:02]} 34. Rf2 {[%emt 0:00:15]} Rf8 {[%emt 0:03:16]} 35. Rxf6+ {[%emt 0:00:19]} Kxf6 {[%emt 0:00:40]} 36. Qxf8+ {[%emt 0:00:08]} Rf7 {[%emt 0:00:04]} 37. Qxd6 {[%emt 0:00:03]} 1-0

[Event "Nakhchivan Premium 2021"]
[Site "Nakhchivan"]
[Date "2021.03.23"]
[Round "2.5"]
[White "Ismayilov, Arturan"]
[Black "Babayev, Talib"]
[Result "1/2-1/2"]
[ECO "C60"]
[WhiteElo "1663"]
[BlackElo "2282"]
[Annotator "ChessBase"]
[PlyCount "109"]
[EventDate "2021.03.14"]
[EventType "tourn"]
[EventCountry "AZE"]
[SourceTitle "playchess.com"]
[Source "ChessBase"]
[SourceQuality "1"]
[TimeControl "5400+30"]

1. e4 {[%emt 0:00:00]} e5 {[%emt 0:00:00]} 2. Nf3 {[%emt 0:00:00]} Nc6 {[%emt 0:00:00]} 3. Bb5 {[%emt 0:00:07]} Nge7 {[%emt 0:00:00]} 4. O-O {[%emt 0:00:11]} g6 {[%emt 0:00:02]} 5. c3 {[%emt 0:00:12]} a6 {[%emt 0:00:55]} 6. Ba4 {[%emt 0:00:55]} Bg7 {[%emt 0:00:11]} 7. d4 {[%emt 0:00:18]} exd4 {[%emt 0:00:09]} 8. cxd4 {[%emt 0:00:02]} O-O {[%emt 0:00:11]} 9. h3 {[%emt 0:03:01]} b5 {[%emt 0:00:47]} 10. Bc2 {[%emt 0:00:47]} d5 {[%emt 0:00:20]} 11. Re1 {[%emt 0:03:24]} dxe4 {[%emt 0:01:34]} 12. Bxe4 {[%emt 0:01:06]} Bf5 {[%emt 0:00:50]} 13. Bxc6 {[%emt 0:12:09]} Nxc6 {[%emt 0:00:13]} 14. Be3 {[%emt 0:00:11]} Nb4 {[%emt 0:04:19]} 15. Re2 {[%emt 0:02:55]} c5 {[%emt 0:04:53]} 16. Rd2 {[%emt 0:05:54]} c4 {[%emt 0:00:19]} 17. a3 {[%emt 0:14:10]} Nd3 {[%emt 0:01:15]} 18. Nc3 {[%emt 0:03:31]} Qb8 {[%emt 0:03:47]} 19. g4 {[%emt 0:04:37]} Bd7 {[%emt 0:00:39]} 20. Rxd3 {[%emt 0:00:28]} cxd3 {[%emt 0:00:08]} 21. Qxd3 {[%emt 0:00:01]} f5 {[%emt 0:04:49]} 22. Ne5 {[%emt 0:02:18]} Bxe5 {[%emt 0:02:07]} 23. dxe5 {[%emt 0:00:13]} Be6 {[%emt 0:00:16]} 24. Bc5 {[%emt 0:02:47]} Qd8 {[%emt 0:06:21]} 25. Qf3 {[%emt 0:04:03]} Re8 {[%emt 0:05:20]} 26. Rd1 {[%emt 0:02:35]} Qc8 {[%emt 0:00:34]} 27. Qe3 {[%emt 0:00:03]} Qb7 {[%emt 0:16:09]} 28. gxf5 {[%emt 0:00:49]} Bxf5 {[%emt 0:05:17]} 29. Nd5 {[%emt 0:02:47]} Rad8 {[%emt 0:01:47]} 30. Ne7+ {[%emt 0:08:55]} Kh8 {[%emt 0:08:12]} 31. Rxd8 {[%emt 0:02:05]} Rxd8 {[%emt 0:00:12]} 32. Bd6 {[%emt 0:00:51]} Qd7 {[%emt 0:02:58]} 33. Qg5 {[%emt 0:00:50]} Rf8 {[%emt 0:11:13]} 34. Nxg6+ {[%emt 0:00:18]} Bxg6 {[%emt 0:00:07]} 35. Bxf8 {[%emt 0:00:12]} Qd1+ {[%emt 0:00:41]} 36. Kh2 {[%emt 0:00:53]} Qf3 {[%emt 0:00:13]} 37. Bc5 {[%emt 0:01:11]} Qf5 {[%emt 0:05:05]} 38. Qxf5 {[%emt 0:04:11]} Bxf5 {[%emt 0:00:07]} 39. Kg3 {[%emt 0:00:13]} Kg7 {[%emt 0:01:34]} 40. h4 {[%emt 0:00:00]} Kf7 {[%emt 0:00:00]} 41. Kf4 {[%emt 0:00:00]} Ke6 {[%emt 0:00:00]} 42. Bd4 {[%emt 0:00:00]} a5 {[%emt 0:00:00]} 43. Kg5 {[%emt 0:00:00]} a4 {[%emt 0:00:00]} 44. Kf4 {[%emt 0:00:00]} Bb1 {[%emt 0:00:00]} 45. Bc3 {[%emt 0:00:00]} Bc2 {[%emt 0:00:00]} 46. Ke3 {[%emt 0:00:00]} Kd5 {[%emt 0:00:00]} 47. h5 {[%emt 0:00:00]} Bf5 {[%emt 0:00:00]} 48. Kf4 {[%emt 0:00:00]} Ke6 {[%emt 0:00:00]} 49. Kg5 {[%emt 0:00:00]} Bc2 {[%emt 0:00:00]} 50. Kh6 {[%emt 0:00:00]} Kf7 {[%emt 0:00:00]} 51. f4 {[%emt 0:00:00]} Bd3 {[%emt 0:00:00]} 52. Kg5 {[%emt 0:00:00]} Ke6 {[%emt 0:00:00]} 53. Kh6 {[%emt 0:00:00]} Kf7 {[%emt 0:00:00]} 54. Kg5 {[%emt 0:00:00]} Ke6 {[%emt 0:00:00]} 55. Kh6 {[%emt 0:00:00]} 1/2-1/2

[Event "Nakhchivan Premium 2021"]
[Site "Nakhchivan"]
[Date "2021.03.23"]
[Round "2.6"]
[White "Babayeva, Nasrin"]
[Black "Hasanzade, Toghrul"]
[Result "1-0"]
[ECO "A05"]
[WhiteElo "1564"]
[BlackElo "2322"]
[Annotator "ChessBase"]
[PlyCount "84"]
[EventDate "2021.03.14"]
[EventType "tourn"]
[EventCountry "AZE"]
[SourceTitle "playchess.com"]
[Source "ChessBase"]
[SourceQuality "1"]
[TimeControl "5400+30"]

1. Nf3 {[%emt 0:00:00]} Nf6 {[%emt 0:00:00]} 2. c4 {[%emt 0:00:05]} c6 {[%emt 0:00:55]} 3. g3 {[%emt 0:00:15]} d5 {[%emt 0:00:14]} 4. Bg2 {[%emt 0:00:56]} g6 {[%emt 0:02:45]} 5. O-O {[%emt 0:00:40]} Bg7 {[%emt 0:00:07]} 6. d3 {[%emt 0:01:24]} O-O {[%emt 0:00:16]} 7. Bf4 {[%emt 0:01:33]} Re8 {[%emt 0:01:54]} 8. Nc3 {[%emt 0:05:38]} Nh5 {[%emt 0:12:30]} 9. Be5 {[%emt 0:07:01]} Bh6 {[%emt 0:21:48]} 10. Bxb8 {[%emt 0:03:18]} Rxb8 {[%emt 0:00:08]} 11. cxd5 {[%emt 0:02:51]} cxd5 {[%emt 0:00:20]} 12. Qa4 {[%emt 0:00:24]} a5 {[%emt 0:09:14]} 13. Nxd5 {[%emt 0:06:08]} b5 {[%emt 0:03:41]} 14. Qd4 {[%emt 0:05:21]} Bg7 {[%emt 0:14:45]} 15. Qc5 {[%emt 0:07:16]} Bb7 {[%emt 0:06:54]} 16. Nc7 {[%emt 0:03:12]} Rc8 {[%emt 0:05:51]} 17. Rac1 {[%emt 0:00:08]} Bxb2 {[%emt 0:05:26]} 18. Rc2 {[%emt 0:00:11]} Bxf3 {[%emt 0:00:12]} 19. Bxf3 {[%emt 0:00:18]} b4 {[%emt 0:06:10]} 20. Bb7 {[%emt 0:05:16]} Bc3 {[%emt 0:03:15]} 21. Bxc8 {[%emt 0:00:16]} Qxc8 {[%emt 0:00:01]} 22. Qxa5 {[%emt 0:00:34]} Qd8 {[%emt 0:02:38]} 23. a3 {[%emt 0:00:28]} Rf8 {[%emt 0:01:01]} 24. axb4 {[%emt 0:00:11]} Bg7 {[%emt 0:00:26]} 25. Nd5 {[%emt 0:00:13]} Qd7 {[%emt 0:01:03]} 26. Rc7 {[%emt 0:00:30]} Qh3 {[%emt 0:00:21]} 27. Rxe7 {[%emt 0:00:49]} Bd4 {[%emt 0:00:39]} 28. e3 {[%emt 0:00:10]} Bh8 {[%emt 0:00:43]} 29. b5 {[%emt 0:00:20]} Nf6 {[%emt 0:00:35]} 30. Nxf6+ {[%emt 0:00:34]} Bxf6 {[%emt 0:00:01]} 31. Ra7 {[%emt 0:00:12]} Bd8 {[%emt 0:00:53]} 32. b6 {[%emt 0:00:08]} Qe6 {[%emt 0:00:16]} 33. Rb1 {[%emt 0:00:11]} h5 {[%emt 0:00:16]} 34. h4 {[%emt 0:00:35]} Qg4 {[%emt 0:00:35]} 35. Qb4 {[%emt 0:00:12]} Qf5 {[%emt 0:00:45]} 36. Qe4 {[%emt 0:00:32]} Qc5 {[%emt 0:00:23]} 37. d4 {[%emt 0:00:15]} Qd6 {[%emt 0:00:38]} 38. Qe5 {[%emt 0:00:26]} Qc6 {[%emt 0:00:24]} 39. Qc5 {[%emt 0:00:11]} Qe4 {[%emt 0:00:21]} 40. Rc1 {[%emt 0:00:00]} g5 {[%emt 0:00:00]} 41. b7 {[%emt 0:00:00]} gxh4 {[%emt 0:00:00]} 42. b8=Q {[%emt 0:00:00]} Qf4 1-0

[Event "Nakhchivan Premium 2021"]
[Site "Nakhchivan"]
[Date "2021.03.24"]
[Round "3.6"]
[White "Aliyev, Aykhan"]
[Black "Garayev, Sadig"]
[Result "1/2-1/2"]
[ECO "C01"]
[WhiteElo "1683"]
[BlackElo "1781"]
[Annotator "NA RC"]
[PlyCount "48"]
[EventDate "2021.03.14"]
[EventType "tourn"]
[EventCountry "AZE"]
[SourceTitle "playchess.com"]
[Source "ChessBase"]
[SourceQuality "1"]
[TimeControl "5400+30"]

1. e4 {[%emt 0:00:00]} e6 {[%emt 0:00:09]} 2. d4 {[%emt 0:00:00]} d5 {[%emt 0:00:10]} 3. exd5 {[%emt 0:00:00]} exd5 {[%emt 0:00:08]} 4. Nf3 {[%emt 0:00:00]} Bd6 {[%emt 0:00:32]} 5. c4 {[%emt 0:00:20]} Nf6 {[%emt 0:00:19]} 6. Bd3 {[%emt 0:01:53]} O-O {[%emt 0:03:10]} 7. O-O {[%emt 0:00:37]} dxc4 {[%emt 0:00:11]} 8. Bxc4 {[%emt 0:00:07]} Bg4 {[%emt 0:05:32]} 9. Bg5 {[%emt 0:03:04]} h6 {[%emt 0:03:24]} 10. Bh4 {[%emt 0:01:36]} Nc6 {[%emt 0:05:24]} 11. h3 {[%emt 0:33:29]} Bxf3 {[%emt 0:04:18]} 12. Qxf3 {[%emt 0:00:22]} Nxd4 {[%emt 0:00:38]} 13. Qd3 {[%emt 0:02:01]} Nc6 {[%emt 0:04:18]} 14. Qc2 {[%emt 0:04:47]} Ne5 {[%emt 0:07:33]} 15. Bb3 {[%emt 0:00:38]} Kh8 {[%emt 0:00:42]} 16. Nc3 {[%emt 0:10:46]} Ng6 {[%emt 0:10:22]} 17. Bg3 {[%emt 0:01:17]} Nh5 {[%emt 0:26:14]} 18. Rad1 {[%emt 0:08:21]} f5 {[%emt 0:02:27]} 19. Rd5 {[%emt 0:20:56]} Qf6 {[%emt 0:07:15]} 20. Bxd6 {[%emt 0:03:59]} cxd6 {[%emt 0:00:19]} 21. Qd1 {[%emt 0:03:18]} Nhf4 {[%emt 0:02:56]} 22. Rd4 {[%emt 0:00:22]} Rac8 {[%emt 0:02:44]} 23. Kh2 Qg5 {[%emt 0:05:32]} 24. g3 {[%emt 0:01:38]} Nh5 {[%emt 0:05:18]} 1/2-1/2

[Event "Nakhchivan Premium 2021"]
[Site "Nakhchivan"]
[Date "2021.03.25"]
[Round "4.2"]
[White "Babayeva, Nasrin"]
[Black "Aliyev, Aykhan"]
[Result "1-0"]
[ECO "A17"]
[WhiteElo "1564"]
[BlackElo "1683"]
[Annotator "NA RC"]
[PlyCount "57"]
[EventDate "2021.03.14"]
[EventType "tourn"]
[EventCountry "AZE"]
[SourceTitle "playchess.com"]
[Source "ChessBase"]
[SourceQuality "1"]
[TimeControl "5400+30"]

1. c4 {[%emt 0:00:00]} Nf6 {[%emt 0:00:00]} 2. Nc3 {[%emt 0:00:14]} e6 {[%emt 0:00:02]} 3. g3 {[%emt 0:00:12]} Be7 {[%emt 0:00:10]} 4. Bg2 {[%emt 0:00:07]} d5 {[%emt 0:00:32]} 5. b3 {[%emt 0:02:06]} c5 {[%emt 0:01:55]} 6. e3 {[%emt 0:01:02]} b6 {[%emt 0:05:47]} 7. Nge2 {[%emt 0:01:46]} Bb7 {[%emt 0:01:12]} 8. Nf4 {[%emt 0:03:27]} Na6 {[%emt 0:09:15]} 9. Bb2 {[%emt 0:01:56]} Nc7 {[%emt 0:12:37]} 10. cxd5 {[%emt 0:03:46]} exd5 {[%emt 0:00:41]} 11. d4 {[%emt 0:00:42]} O-O {[%emt 0:03:11]} 12. O-O {[%emt 0:00:14]} Bd6 {[%emt 0:06:21]} 13. dxc5 {[%emt 0:01:50]} Bxf4 {[%emt 0:06:26]} 14. exf4 {[%emt 0:00:45]} bxc5 {[%emt 0:00:55]} 15. Na4 {[%emt 0:01:52]} Na6 {[%emt 0:05:39]} 16. Rc1 {[%emt 0:01:00]} Rc8 {[%emt 0:00:32]} 17. Qd2 {[%emt 0:04:10]} Re8 {[%emt 0:11:00]} 18. Ba3 {[%emt 0:00:57]} Qd6 {[%emt 0:10:21]} 19. Qa5 {[%emt 0:02:02]} Nd7 {[%emt 0:01:36]} 20. Rfd1 {[%emt 0:00:39]} Rc7 {[%emt 0:06:52]} 21. Nc3 {[%emt 0:00:55]} Nf6 {[%emt 0:06:43]} 22. Nb5 {[%emt 0:00:26]} Qb6 {[%emt 0:00:06]} 23. Qxb6 {[%emt 0:00:13]} axb6 {[%emt 0:00:05]} 24. Nxc7 {[%emt 0:00:05]} Nxc7 {[%emt 0:00:06]} 25. Re1 {[%emt 0:01:17]} Ra8 {[%emt 0:01:49]} 26. Re7 {[%emt 0:00:52]} Nfe8 {[%emt 0:00:11]} 27. Bb2 {[%emt 0:07:52]} Kf8 {[%emt 0:01:39]} 28. Re2 {[%emt 0:00:08]} Rxa2 {[%emt 0:00:10]} 29. Bxg7+ {[%emt 0:00:04]} 1-0